fUSD/lending_fUSD_20260112
["ID","MTS","AMOUNT","RATE_DAILY","PERIOD"]
[401417288,1768195842628,-736.0,0.00017673,2]
[401417289,1768195842637,-1984.0,0.00017678,2]
[401417290,1768195842647,-150.0,0.00017682,2]
[401417291,1768195842657,-150.0,0.00017682,2]
[401417292,1768195842668,-200.0,0.00017698,2]
[401417293,1768195842679,-500.0,0.00017698,2]
[401417294,1768195842689,-357.41876198,0.00017698,2]
[401417295,1768195842699,-500.0,0.00017698,2]
[401417296,1768195842708,-500.0,0.00017698,2]
[401417297,1768195842718,-610.0,0.00017698,2]
[401417298,1768195842727,-230.15043616,0.00017699,2]
[401417299,1768195842737,-780.28325037,0.000177,2]
[401417300,1768195842747,-403.0,0.000177,5]
[401417301,1768195842756,-268.4,0.00017704,2]
[401417302,1768195842767,-150.0,0.00017716,2]
[401417303,1768195842778,-150.0,0.00017716,2]
[401417304,1768195842788,-335.85,0.0001772,2]
[401417305,1768195842802,-150.0,0.00017723,2]
[401417306,1768195842812,-500.0,0.00017725,2]
[401417307,1768195842822,-150.0,0.0001773,2]
[401417308,1768195842832,-150.0,0.00017743,2]
[401417309,1768195842841,-500.0,0.00017753,2]
[401417310,1768195842851,-500.0,0.00017753,2]
[401417311,1768195842861,-500.0,0.00017753,2]
[401417312,1768195842873,-150.0,0.0001776,2]
[401417313,1768195842883,-150.0,0.00017763,2]
[401417314,1768195842892,-546.78340144,0.00017788,2]
[401417315,1768195842901,-150.0,0.00017788,2]
[401417316,1768195842920,-150.0,0.00017788,2]
[401417317,1768195842931,-1000.0,0.000178,2]
[401417318,1768195842940,-211.92811462,0.000178,2]
[401417319,1768195842950,-14458.04141764,0.000178,2]
[401417320,1768195842960,-2987.79350318,0.000178,2]
[401417321,1768195842970,-268.4,0.00017803,2]
[401417322,1768195842980,-156.587,0.00017807,2]
[401417323,1768195842990,-500.0,0.00017808,2]
[401417324,1768195842999,-150.67981664,0.00017808,2]
[401417325,1768195843008,-7056.38566073,0.00017809,2]
[401417326,1768195843018,-150.0,0.00017811,2]
[401417327,1768195843027,-150.0,0.00017811,2]
[401417328,1768195843037,-1808.17008671,0.00017815,2]
[401417329,1768195843047,-239.44755982,0.00017815,3]
[401417330,1768195843056,-150.0,0.0001782,2]
[401417331,1768195843066,-2109.39679,0.0001782,2]
[401417332,1768195843076,-2109.39679,0.0001782,2]
[401417334,1768195843086,-2987.79350316,0.0001782,2]
[401417336,1768195843095,-910.24842296,0.0001782,2]
[401417338,1768195843107,-7056.38566073,0.00017824,2]
[401417339,1768195843118,-25000.0,0.0001783,3]
[401417340,1768195843128,-2109.39679,0.0001783,2]
[401417341,1768195843138,-250.0,0.00017838,2]
[401417342,1768195843148,-866.54,0.00017838,2]
[401417343,1768195843158,-25000.0,0.00017838,3]
[401417344,1768195843168,-7056.38566073,0.00017839,2]
[401417345,1768195843179,-2987.79350316,0.0001784,2]
[401417346,1768195843189,-1047.04298225,0.00017846,2]
[401417347,1768195843199,-25000.0,0.00017847,3]
[401417348,1768195843210,-211.9281146,0.0001785,2]
[401417349,1768195843222,-7056.38566073,0.00017854,2]
[401417350,1768195843232,-200.0,0.00017855,2]
[401417351,1768195843242,-200.0,0.00017856,2]
[401417352,1768195843253,-25000.0,0.00017856,3]
[401417353,1768195843267,-1808.17008669,0.00017858,2]
[401417354,1768195843278,-239.44755982,0.00017858,3]
[401417355,1768195843289,-150.0,0.00017858,2]
[401417356,1768195843299,-2109.39679,0.0001786,2]
[401417357,1768195843310,-2987.79350316,0.0001786,2]
[401417358,1768195843321,-150.0,0.00017862,2]
[401417359,1768195843330,-500.0,0.00017863,2]
[401417360,1768195843340,-500.0,0.00017864,2]
[401417361,1768195843350,-25000.0,0.00017865,3]
[401417362,1768195843360,-168.0,0.00017869,2]
[401417363,1768195843372,-7056.38566073,0.0001787,2]
[401417364,1768195843382,-150.0,0.00017871,2]
[401417365,1768195843392,-25000.0,0.00017874,3]
[401417366,1768195843402,-150.0,0.0001788,2]
[401417367,1768195843412,-2109.39679,0.0001788,2]
[401417368,1768195843423,-2987.79350316,0.0001788,2]
[401417369,1768195843434,-68781.70526549,0.00017881,2]
[401417370,1768195843444,-25000.0,0.00017882,3]
[401417371,1768195843455,-739.85,0.00017884,2]
[401417372,1768195843465,-7056.38566073,0.00017885,2]
[401417373,1768195843475,-866.54,0.0001789,2]
[401417374,1768195843486,-150.0,0.0001789,2]
[401417375,1768195843495,-28047.0,0.0001789,2]
[401417376,1768195843505,-25000.0,0.00017891,3]
[401417377,1768195843515,-150.0,0.00017894,2]
[401417378,1768195843527,-150.0,0.00017894,2]
[401417379,1768195843538,-262.49854168,0.00017899,2]
[401417380,1768195843548,-1110.78417922,0.00017899,5]
[401417381,1768195843559,-500.0,0.00017899,2]
[401417382,1768195843570,-510.98377513,0.00017899,2]
[401417383,1768195843581,-500.0,0.00017899,2]
[401417384,1768195843591,-500.0,0.00017899,2]
[401417385,1768195843603,-866.54,0.00017899,2]
[401417386,1768195843618,-866.54,0.00017899,2]
[401417387,1768195843628,-866.54,0.00017899,2]
[401417388,1768195843639,-866.54,0.00017899,2]
[401417389,1768195843649,-891.55839766,0.000179,2]
[401417390,1768195843659,-8365.1305,0.000179,2]
[401417391,1768195843670,-24172.7647,0.000179,2]
[401417392,1768195843680,-1000000.0,0.000179,2]
[401417393,1768195843690,-1000.0,0.000179,2]
[401417394,1768195843702,-1054.4366,0.000179,2]
[401417395,1768195843714,-25000.0,0.000179,3]
[401417396,1768195843725,-7056.38566073,0.000179,2]
[401417397,1768195843736,-211.9281146,0.000179,2]
[401417398,1768195843747,-5797.60212287,0.000179,2]
[401417399,1768195843757,-1263.93132596,0.000179,2]
[401417400,1768195843769,-1263.93132596,0.000179,2]
[401417401,1768195843779,-1263.93132596,0.000179,2]
[401417402,1768195843790,-1263.93132596,0.000179,2]
[401417403,1768195843805,-1263.93132596,0.000179,2]
[401417404,1768195843816,-1263.93132596,0.000179,2]
[401417405,1768195843826,-1263.93132596,0.000179,2]
[401417406,1768195843837,-1263.93132596,0.000179,2]
[401417407,1768195843847,-1263.93132596,0.000179,2]
[401417408,1768195843857,-1263.93132596,0.000179,2]
[401417409,1768195843868,-1263.93132596,0.000179,2]
[401417410,1768195843878,-2987.79350316,0.000179,2]
[401417411,1768195843888,-879.0259491,0.000179,2]
[401417412,1768195843898,-1808.17008669,0.000179,2]
[401417413,1768195843908,-239.44755982,0.000179,3]
[401417414,1768195843918,-6457.0,0.000179,2]
[401417415,1768195843927,-268.4,0.00017901,2]
[401417416,1768195843937,-1047.04298225,0.00017901,2]
[401417417,1768195843947,-150.0,0.00017905,2]
[401417418,1768195843956,-150.0,0.00017905,2]
[401417419,1768195843967,-150.0,0.0001791,2]
[401417420,1768195843981,-2109.39679,0.0001791,2]
[401417421,1768195843991,-866.54,0.0001791,2]
[401417422,1768195844001,-866.54,0.0001791,2]
[401417423,1768195844011,-866.54,0.0001791,2]
[401417424,1768195844021,-866.54,0.0001791,2]
[401417425,1768195844031,-866.54,0.0001791,2]
[401417426,1768195844041,-150.0,0.0001791,2]
[401417427,1768195844051,-151.0,0.00017911,2]
[401417428,1768195844062,-151.0,0.00017911,2]
[401417429,1768195844072,-438.60159,0.00017911,2]
[401417430,1768195844082,-438.60159,0.00017911,2]
[401417431,1768195844092,-438.60159,0.00017911,2]
[401417432,1768195844102,-438.60159,0.00017911,2]
[401417433,1768195844112,-151.0,0.00017911,2]
[401417434,1768195844122,-151.0,0.00017911,2]
[401417435,1768195844132,-151.0,0.00017911,2]
[401417436,1768195844142,-378.862944,0.00017911,2]
[401417437,1768195844152,-378.862944,0.00017911,2]
[401417438,1768195844164,-475.742154,0.00017911,2]
[401417439,1768195844174,-268.270545,0.00017911,2]
[401417440,1768195844185,-378.862944,0.00017911,2]
[401417441,1768195844196,-475.742154,0.00017911,2]
[401417442,1768195844208,-378.862944,0.00017911,2]
[401417443,1768195844220,-268.270545,0.00017911,2]
[401417444,1768195844230,-151.0,0.00017911,2]
[401417445,1768195844241,-475.742154,0.00017911,2]
[401417446,1768195844253,-151.0,0.00017911,2]
[401417447,1768195844264,-500.0,0.00017911,2]
[401417448,1768195844276,-500.0,0.00017911,2]
[401417449,1768195844286,-193.153439,0.00017911,2]
[401417450,1768195844296,-268.270545,0.00017911,2]
[401417451,1768195844306,-500.0,0.00017911,2]
[401417452,1768195844317,-151.0,0.00017911,2]
[401417453,1768195844331,-500.0,0.00017911,2]
[401417454,1768195844341,-500.0,0.00017911,2]
[401417455,1768195844351,-475.742154,0.00017911,2]
[401417456,1768195844361,-500.0,0.00017911,2]
[401417457,1768195844372,-193.153439,0.00017911,2]
[401417458,1768195844382,-500.0,0.00017911,2]
[401417459,1768195844393,-268.270545,0.00017911,2]
[401417460,1768195844403,-500.0,0.00017911,2]
[401417461,1768195844413,-500.0,0.00017911,2]
[401417462,1768195844423,-500.0,0.00017911,2]
[401417463,1768195844433,-500.0,0.00017911,2]
[401417464,1768195844443,-500.0,0.00017911,2]
[401417465,1768195844452,-179.019883,0.00017911,2]
[401417466,1768195844461,-193.153439,0.00017911,2]
[401417467,1768195844471,-500.0,0.00017911,2]
[401417468,1768195844481,-500.0,0.00017911,2]
[401417469,1768195844490,-500.0,0.00017911,2]
[401417470,1768195844500,-500.0,0.00017911,2]
[401417471,1768195844510,-500.0,0.00017911,2]
[401417472,1768195844524,-193.153439,0.00017911,2]
[401417473,1768195844533,-179.019883,0.00017911,2]
[401417474,1768195844543,-500.0,0.00017911,2]
[401417475,1768195844553,-500.0,0.00017911,2]
[401417476,1768195844562,-500.0,0.00017911,2]
[401417477,1768195844572,-500.0,0.00017911,2]
[401417478,1768195844582,-500.0,0.00017911,2]
[401417479,1768195844591,-179.019883,0.00017911,2]
[401417480,1768195844601,-500.0,0.00017911,2]
[401417481,1768195844611,-500.0,0.00017911,2]
[401417482,1768195844621,-500.0,0.00017911,2]
[401417483,1768195844631,-500.0,0.00017911,2]
[401417484,1768195844641,-500.0,0.00017911,2]
[401417485,1768195844650,-179.019883,0.00017911,2]
[401417486,1768195844660,-571.794591,0.00017911,2]
[401417487,1768195844669,-151.0,0.00017911,2]
[401417488,1768195844678,-323.444424,0.00017911,2]
[401417490,1768195844687,-506.307155,0.00017911,2]
[401417492,1768195844696,-151.0,0.00017911,2]
[401417493,1768195844706,-323.444424,0.00017911,2]
[401417494,1768195844718,-506.307155,0.00017911,2]
[401417495,1768195844728,-151.0,0.00017911,2]
[401417496,1768195844737,-323.444424,0.00017911,2]
[401417498,1768195844747,-506.307155,0.00017911,2]
[401417499,1768195844756,-506.307155,0.00017911,2]
[401417500,1768195844766,-323.444424,0.00017911,2]
[401417501,1768195844776,-151.0,0.00017911,2]
[401417502,1768195844785,-151.0,0.00017911,2]
[401417503,1768195844795,-438.167901,0.00017911,2]
[401417504,1768195844807,-151.0,0.00017911,2]
[401417505,1768195844817,-438.167901,0.00017911,2]
[401417506,1768195844827,-438.167901,0.00017911,2]
[401417507,1768195844837,-438.167901,0.00017911,2]
[401417508,1768195844847,-151.0,0.00017911,2]
[401417509,1768195844857,-413.911364,0.00017911,2]
[401417510,1768195844867,-151.0,0.00017911,2]
[401417511,1768195844876,-311.163043,0.00017911,2]
[401417512,1768195844886,-413.911364,0.00017911,2]
[401417513,1768195844895,-311.163043,0.00017911,2]
[401417514,1768195844905,-413.911364,0.00017911,2]
[401417515,1768195844915,-413.911364,0.00017911,2]
[401417516,1768195844926,-151.0,0.00017911,2]
[401417517,1768195844937,-311.163043,0.00017911,2]
[401417518,1768195844947,-159.975585,0.00017911,2]
[401417519,1768195844958,-151.0,0.00017911,2]
[401417520,1768195844967,-311.163043,0.00017911,2]
[401417521,1768195844977,-151.0,0.00017911,2]
[401417522,1768195844986,-406.875021,0.00017911,2]
[401417523,1768195844995,-492.569989,0.00017911,2]
[401417524,1768195845005,-406.875021,0.00017911,2]
[401417525,1768195845014,-492.569989,0.00017911,2]
[401417526,1768195845024,-406.875021,0.00017911,2]
[401417527,1768195845034,-151.0,0.00017911,2]
[401417528,1768195845043,-151.0,0.00017911,2]
[401417529,1768195845053,-492.569989,0.00017911,2]
[401417530,1768195845064,-406.875021,0.00017911,2]
[401417531,1768195845074,-151.0,0.00017911,2]
[401417532,1768195845092,-492.569989,0.00017911,2]
[401417533,1768195845104,-777.804847,0.00017911,2]
[401417534,1768195845114,-777.804847,0.00017911,2]
[401417535,1768195845123,-151.0,0.00017911,2]
[401417536,1768195845133,-404.421894,0.00017911,2]
[401417537,1768195845142,-151.0,0.00017911,2]
[401417538,1768195845153,-151.0,0.00017911,2]
[401417539,1768195845163,-777.804847,0.00017911,2]
[401417540,1768195845175,-404.421894,0.00017911,2]
[401417541,1768195845187,-151.0,0.00017911,2]
[401417542,1768195845200,-777.804847,0.00017911,2]
[401417543,1768195845210,-1088.696282,0.00017911,2]
[401417544,1768195845221,-151.0,0.00017911,2]
[401417545,1768195845232,-404.421894,0.00017911,2]
[401417546,1768195845243,-151.0,0.00017911,2]
[401417547,1768195845253,-1088.696282,0.00017911,2]
[401417548,1768195845265,-829.776867,0.00017911,2]
[401417549,1768195845274,-404.421894,0.00017911,2]
[401417550,1768195845285,-1088.696282,0.00017911,2]
[401417551,1768195845296,-829.776867,0.00017911,2]
[401417552,1768195845307,-1088.696282,0.00017911,2]
[401417553,1768195845317,-151.0,0.00017911,2]
[401417554,1768195845327,-829.776867,0.00017911,2]
[401417555,1768195845337,-829.776867,0.00017911,2]
[401417556,1768195845347,-151.0,0.00017911,2]
[401417557,1768195845356,-151.0,0.00017911,2]
[401417558,1768195845366,-205.617131,0.00017911,2]
[401417559,1768195845376,-151.0,0.00017911,2]
[401417560,1768195845386,-151.0,0.00017911,2]
[401417561,1768195845395,-2277.167351,0.00017911,2]
[401417562,1768195845404,-2277.167351,0.00017911,2]
[401417563,1768195845413,-2277.167351,0.00017911,2]
[401417564,1768195845423,-2277.167351,0.00017911,2]
[401417565,1768195845432,-876.570737,0.00017911,2]
[401417566,1768195845442,-536.096762,0.00017911,2]
[401417567,1768195845455,-876.570737,0.00017911,2]
[401417568,1768195845464,-536.096762,0.00017911,2]
[401417569,1768195845474,-876.570737,0.00017911,2]
[401417570,1768195845483,-536.096762,0.00017911,2]
[401417571,1768195845493,-876.570737,0.00017911,2]
[401417572,1768195845503,-536.096762,0.00017911,2]
[401417573,1768195845512,-151.0,0.00017911,2]
[401417574,1768195845521,-157.93445,0.00017911,2]
[401417575,1768195845531,-151.0,0.00017911,2]
[401417576,1768195845541,-151.0,0.00017911,2]
[401417577,1768195845552,-151.0,0.00017911,2]
[401417578,1768195845563,-151.0,0.00017911,2]
[401417579,1768195845574,-151.0,0.00017911,2]
[401417580,1768195845585,-151.0,0.00017911,2]
[401417581,1768195845595,-151.0,0.00017911,2]
[401417582,1768195845606,-151.0,0.00017911,2]
[401417583,1768195845617,-151.0,0.00017911,2]
[401417584,1768195845626,-151.0,0.00017911,2]
[401417585,1768195845637,-151.0,0.00017911,2]
[401417586,1768195845649,-151.0,0.00017911,2]
[401417587,1768195845659,-151.0,0.00017911,2]
[401417588,1768195845670,-949.908812,0.00017911,2]
[401417589,1768195845680,-151.0,0.00017911,2]
[401417590,1768195845691,-258.065145,0.00017911,2]
[401417591,1768195845701,-970.748749,0.00017911,2]
[401417592,1768195845711,-949.908812,0.00017911,2]
[401417593,1768195845721,-258.065145,0.00017911,2]
[401417594,1768195845732,-151.0,0.00017911,2]
[401417595,1768195845742,-151.0,0.00017911,2]
[401417596,1768195845752,-970.748749,0.00017911,2]
[401417597,1768195845762,-329.021696,0.00017911,2]
[401417598,1768195845772,-949.908812,0.00017911,2]
[401417599,1768195845783,-258.065145,0.00017911,2]
[401417600,1768195845792,-970.748749,0.00017911,2]
[401417601,1768195845805,-949.908812,0.00017911,2]
[401417602,1768195845815,-329.021696,0.00017911,2]
[401417603,1768195845829,-258.065145,0.00017911,2]
[401417604,1768195845841,-187.899798,0.00017911,2]
[401417605,1768195845851,-970.748749,0.00017911,2]
[401417606,1768195845862,-329.021696,0.00017911,2]
[401417607,1768195845873,-329.021696,0.00017911,2]
[401417608,1768195845884,-1159.429831,0.00017911,2]
[401417609,1768195845894,-1159.429831,0.00017911,2]
[401417610,1768195845904,-151.0,0.00017911,2]
[401417611,1768195845915,-1159.429831,0.00017911,2]
[401417612,1768195846299,-1619.066186,0.00017911,2]
[401417613,1768195846340,-151.0,0.00017911,2]
[401417614,1768195846350,-1647.039821,0.00017911,2]
[401417615,1768195846360,-1159.429831,0.00017911,2]
[401417616,1768195846370,-1619.066186,0.00017911,2]
[401417617,1768195846380,-151.0,0.00017911,2]
[401417618,1768195846390,-1647.039821,0.00017911,2]
[401417619,1768195846400,-1619.066186,0.00017911,2]
[401417620,1768195846410,-1647.039821,0.00017911,2]
[401417621,1768195846419,-151.0,0.00017911,2]
[401417622,1768195846429,-1619.066186,0.00017911,2]
[401417623,1768195846438,-1647.039821,0.00017911,2]
[401417624,1768195846447,-202.183274,0.00017911,2]
[401417625,1768195846457,-202.183274,0.00017911,2]
[401417626,1768195846471,-151.0,0.00017911,2]
[401417627,1768195846481,-2544.397561,0.00017911,2]
[401417628,1768195846491,-202.183274,0.00017911,2]
[401417629,1768195846501,-2544.397561,0.00017911,2]
[401417630,1768195846511,-202.183274,0.00017911,2]
[401417631,1768195846522,-2544.397561,0.00017911,2]
[401417632,1768195846531,-2544.397561,0.00017911,2]
[401417633,1768195846541,-585.678073,0.00017911,2]
[401417634,1768195846551,-585.678073,0.00017911,2]
[401417635,1768195846561,-151.0,0.00017911,2]
[401417636,1768195846571,-585.678073,0.00017911,2]
[401417638,1768195846581,-151.0,0.00017911,2]
[401417640,1768195846591,-585.678073,0.00017911,2]
[401417642,1768195846600,-151.0,0.00017911,2]
[401417644,1768195846610,-151.0,0.00017911,2]
[401417646,1768195846620,-151.0,0.00017911,2]
[401417648,1768195846629,-1767.548746,0.00017911,2]
[401417649,1768195846639,-501.106021,0.00017911,2]
[401417650,1768195846649,-1767.548746,0.00017911,2]
[401417651,1768195846658,-151.0,0.00017911,2]
[401417652,1768195846667,-402.021243,0.00017911,2]
[401417653,1768195846677,-501.106021,0.00017911,2]
[401417654,1768195846687,-1767.548746,0.00017911,2]
[401417655,1768195846696,-151.0,0.00017911,2]
[401417656,1768195846705,-402.021243,0.00017911,2]
[401417657,1768195846714,-1276.752068,0.00017911,2]
[401417658,1768195846724,-501.106021,0.00017911,2]
[401417659,1768195846734,-1767.548746,0.00017911,2]
[401417660,1768195846743,-151.0,0.00017911,2]
[401417661,1768195846754,-402.021243,0.00017911,2]
[401417662,1768195846764,-282.312057,0.00017911,2]
[401417663,1768195846775,-501.106021,0.00017911,2]
[401417664,1768195846784,-1276.752068,0.00017911,2]
[401417665,1768195846794,-151.0,0.00017911,2]
[401417666,1768195846807,-151.0,0.00017911,2]
[401417667,1768195846816,-402.021243,0.00017911,2]
[401417668,1768195846826,-282.312057,0.00017911,2]
[401417669,1768195846836,-151.0,0.00017911,2]
[401417670,1768195846854,-1276.752068,0.00017911,2]
[401417671,1768195846869,-878.078272,0.00017911,2]
[401417672,1768195846880,-151.0,0.00017911,2]
[401417673,1768195846890,-464.411102,0.00017911,2]
[401417674,1768195846901,-151.0,0.00017911,2]
[401417675,1768195846911,-282.312057,0.00017911,2]
[401417676,1768195846921,-151.0,0.00017911,2]
[401417677,1768195846931,-1276.752068,0.00017911,2]
[401417678,1768195846942,-878.078272,0.00017911,2]
[401417679,1768195846952,-464.411102,0.00017911,2]
[401417680,1768195846962,-283.03324,0.00017911,2]
[401417681,1768195846972,-283.642245,0.00017911,2]
[401417682,1768195846983,-282.312057,0.00017911,2]
[401417683,1768195846993,-878.078272,0.00017911,2]
[401417684,1768195847004,-464.411102,0.00017911,2]
[401417685,1768195847015,-151.0,0.00017911,2]
[401417686,1768195847024,-878.078272,0.00017911,2]
[401417687,1768195847034,-464.411102,0.00017911,2]
[401417688,1768195847043,-151.0,0.00017911,2]
[401417689,1768195847053,-157.637598,0.00017911,2]
[401417690,1768195847063,-1680.772685,0.00017911,2]
[401417691,1768195847073,-157.637598,0.00017911,2]
[401417692,1768195847084,-203.911506,0.00017911,2]
[401417693,1768195847094,-895.101573,0.00017911,2]
[401417694,1768195847104,-1680.772685,0.00017911,2]
[401417695,1768195847114,-2666.347677,0.00017911,2]
[401417696,1768195847124,-157.637598,0.00017911,2]
[401417697,1768195847134,-203.911506,0.00017911,2]
[401417698,1768195847144,-1680.772685,0.00017911,2]
[401417699,1768195847154,-895.101573,0.00017911,2]
[401417700,1768195847164,-157.637598,0.00017911,2]
[401417701,1768195847174,-2666.347677,0.00017911,2]
[401417702,1768195847184,-203.911506,0.00017911,2]
[401417703,1768195847195,-2139.417501,0.00017911,2]
[401417704,1768195847205,-1680.772685,0.00017911,2]
[401417705,1768195847215,-895.101573,0.00017911,2]
[401417706,1768195847225,-2666.347677,0.00017911,2]
[401417707,1768195847235,-897.996354,0.00017911,2]
[401417708,1768195847244,-203.911506,0.00017911,2]
[401417709,1768195847254,-2139.417501,0.00017911,2]
[401417710,1768195847264,-895.101573,0.00017911,2]
[401417711,1768195847274,-2666.347677,0.00017911,2]
[401417712,1768195847285,-897.996354,0.00017911,2]
[401417713,1768195847294,-2139.417501,0.00017911,2]
[401417714,1768195847306,-897.996354,0.00017911,2]
[401417715,1768195847317,-2139.417501,0.00017911,2]
[401417716,1768195847328,-897.996354,0.00017911,2]
[401417717,1768195847339,-151.0,0.00017911,2]
[401417718,1768195847350,-151.0,0.00017911,2]
[401417719,1768195847361,-151.0,0.00017911,2]
[401417720,1768195847371,-151.0,0.00017911,2]
[401417721,1768195847381,-151.0,0.00017911,2]
[401417722,1768195847391,-151.0,0.00017911,2]
[401417723,1768195847401,-151.0,0.00017911,2]
[401417724,1768195847411,-151.0,0.00017911,2]
[401417725,1768195847420,-151.0,0.00017911,2]
[401417726,1768195847431,-151.0,0.00017911,2]
[401417727,1768195847440,-151.0,0.00017911,2]
[401417728,1768195847450,-291.883143,0.00017911,2]
[401417729,1768195847459,-151.0,0.00017911,2]
[401417730,1768195847470,-151.0,0.00017911,2]
[401417731,1768195847479,-151.0,0.00017911,2]
[401417732,1768195847491,-291.883143,0.00017911,2]
[401417733,1768195847501,-151.0,0.00017911,2]
[401417734,1768195847512,-291.883143,0.00017911,2]
[401417735,1768195847522,-151.0,0.00017911,2]
[401417736,1768195847532,-291.883143,0.00017911,2]
[401417737,1768195847542,-151.0,0.00017911,2]
[401417738,1768195847552,-151.0,0.00017911,2]
[401417739,1768195847562,-151.0,0.00017911,2]
[401417740,1768195847572,-169.532666,0.00017911,2]
[401417741,1768195847582,-3545.17763,0.00017911,2]
[401417742,1768195847591,-151.0,0.00017911,2]
[401417743,1768195847601,-156.283737,0.00017911,2]
[401417744,1768195847611,-169.532666,0.00017911,2]
[401417745,1768195847620,-2704.225356,0.00017911,2]
[401417746,1768195847630,-3545.17763,0.00017911,2]
[401417747,1768195847640,-151.0,0.00017911,2]
[401417748,1768195847649,-169.532666,0.00017911,2]
[401417749,1768195847659,-2704.225356,0.00017911,2]
[401417750,1768195847669,-179.570681,0.00017911,2]
[401417751,1768195847678,-3545.17763,0.00017911,2]
[401417752,1768195847688,-151.0,0.00017911,2]
[401417753,1768195847700,-151.0,0.00017911,2]
[401417754,1768195847711,-2704.225356,0.00017911,2]
[401417755,1768195847720,-169.532666,0.00017911,2]
[401417756,1768195847730,-3545.17763,0.00017911,2]
[401417757,1768195847740,-151.0,0.00017911,2]
[401417758,1768195847750,-2704.225356,0.00017911,2]
[401417759,1768195847759,-151.0,0.00017911,2]
[401417760,1768195847768,-151.0,0.00017911,2]
[401417761,1768195847778,-151.0,0.00017911,2]
[401417762,1768195847791,-200.139122,0.00017911,2]
[401417763,1768195847805,-200.139122,0.00017911,2]
[401417764,1768195847815,-1668.181417,0.00017911,2]
[401417765,1768195847824,-163.897056,0.00017911,2]
[401417766,1768195847835,-151.0,0.00017911,2]
[401417767,1768195847846,-1668.181417,0.00017911,2]
[401417768,1768195847855,-200.139122,0.00017911,2]
[401417769,1768195847865,-163.897056,0.00017911,2]
[401417770,1768195847877,-1668.181417,0.00017911,2]
[401417771,1768195847886,-208.281146,0.00017911,2]
[401417772,1768195847895,-200.139122,0.00017911,2]
[401417773,1768195847905,-163.897056,0.00017911,2]
[401417774,1768195847915,-1668.181417,0.00017911,2]
[401417775,1768195847924,-237.736054,0.00017911,2]
[401417776,1768195847934,-163.897056,0.00017911,2]
[401417777,1768195847944,-208.281146,0.00017911,2]
[401417778,1768195847955,-158018.86338473,0.00017911,2]
[401417779,1768195847965,-257050.49498623,0.00017911,2]
[401417780,1768195847976,-363032.01685708,0.00017911,2]
[401417781,1768195847985,-469755.7821,0.00017911,2]
[401417782,1768195847995,-1984.0,0.00017915,2]
[401417783,1768195848006,-570.34837808,0.00017918,2]
[401417784,1768195848017,-168.0,0.00017934,2]
[401417785,1768195848027,-168.0,0.0001794,2]
[401417786,1768195848037,-150.0,0.00017953,2]
[401417787,1768195848048,-866.54,0.00017972,2]
[401417788,1768195848059,-501.12911319,0.00017973,2]
[401417789,1768195848068,-502.23302881,0.00017973,2]
[401417790,1768195848078,-644.05438872,0.00017973,2]
[401417791,1768195848088,-500.0,0.00017973,2]
[401417792,1768195848098,-503.67264874,0.00017973,2]
[401417793,1768195848107,-500.55153068,0.00017973,2]
[401417794,1768195848117,-501.78685961,0.00017973,2]
[401417795,1768195848127,-503.85916191,0.00017973,2]
[401417796,1768195848137,-381.34584895,0.00017973,2]
[401417797,1768195848146,-501.10571804,0.00017973,2]
[401417798,1768195848157,-501.38258594,0.00017973,2]
[401417799,1768195848166,-515.69548792,0.00017973,2]